bitfinex/quotes_ETHUSD_20241231
["timestamp","ask_amount","ask_price","bid_price","bid_amount"]
[1735668564412,3.78983914,3372.5,3371.9,0.09077684]
[1735668565295,2.96525,3372.4,3371.9,0.09077684]
[1735668565501,4.18178007,3372.4,3371.9,0.09077684]
[1735668566002,1.21653007,3372.4,3371.9,0.09077684]
[1735668567698,1.21653007,3372.3,3371.9,0.09077684]
[1735668568842,5.04595248,3372.4,3371.9,0.09077684]
[1735668569138,2.96559,3372.0,3371.9,0.09077684]
[1735668569364,5.54157232,3372.4,3371.9,0.09077684]
[1735668569645,2.96546,3372.2,3371.9,0.09077684]
[1735668569843,2.0672333,3372.1,3371.9,0.09077684]
[1735668570026,6.42652984,3372.0,3371.9,0.09077684]
[1735668570199,6.97652984,3372.0,3371.9,0.09077684]
[1735668571511,8.79665706,3372.0,3371.9,0.09077684]
[1735668572143,1.82012722,3372.0,3371.9,0.09077684]
[1735668572848,1.82012722,3372.0,3371.9,6.05645684]
[1735668573052,1.82012722,3372.0,3371.9,6.66210252]
[1735668573234,1.79166222,3372.0,3371.9,7.46470252]
[1735668574465,0.60637784,3372.6,3371.9,4.46470252]
[1735668575355,0.60637784,3372.6,3371.9,1.49902252]
[1735668575857,0.60637784,3372.6,3371.9,4.46468252]
[1735668576028,0.60637784,3372.6,3372.0,0.44646825]
[1735668578141,0.60637784,3372.6,3371.9,0.89337684]
[1735668578555,0.60637784,3372.6,3371.9,0.09077684]
[1735668578751,0.60637784,3372.6,3372.0,3.76816]
[1735668579267,1.22408992,3372.9,3372.3,2.96533]
[1735668579561,1.22408992,3372.9,3372.1,2.96547]
[1735668579768,2.19135929,3372.9,3372.0,0.8026]
[1735668580260,3.93207937,3372.9,3372.0,0.8026]
[1735668580462,0.96726937,3372.9,3371.9,0.09077684]
[1735668580767,2.96518,3372.5,3371.9,0.09077684]
[1735668580974,3.46093984,3372.4,3371.9,0.09077684]
[1735668581268,0.34609398,3372.3,3371.9,0.09077684]
[1735668581865,3.0,3372.7,3371.9,0.09077684]
[1735668581866,2.96532,3372.4,3371.9,0.09077684]
[1735668582074,2.96535,3372.3,3371.9,0.09077684]
[1735668582428,1.22408992,3372.3,3371.9,0.09077684]
[1735668584752,0.5798739,3372.4,3371.9,0.09077684]
[1735668586235,6.22891787,3372.4,3371.9,0.09077684]
[1735668586469,0.74530078,3372.3,3371.9,0.09077684]
[1735668587293,3.71065078,3372.3,3371.9,0.09077684]
[1735668587779,4.9347407,3372.3,3371.9,0.09077684]
[1735668588177,1.9693907,3372.3,3371.9,0.09077684]
[1735668588482,1.22408992,3372.3,3371.9,0.09077684]
[1735668588642,1.22408992,3372.3,3372.0,0.7979]
[1735668588836,1.22408992,3372.3,3372.2,3.76332]
[1735668589281,1.83636745,3372.4,3372.2,3.76332]
[1735668589282,1.83636745,3372.4,3372.2,4.31332]
[1735668589491,7.45e-06,3372.4,3372.3,7.31323]
[1735668589691,1.22612829,3373.1,3373.0,3.76261]
[1735668591009,0.59441161,3374.0,3373.1,2.96459]
[1735668591295,5.42683629,3374.4,3373.5,2.96423]
[1735668591499,0.59798094,3374.2,3373.5,2.96423]
[1735668592010,0.59798094,3374.2,3373.0,0.7979]
[1735668592149,1.62491508,3374.2,3373.2,2.9645]
[1735668592779,1.62491508,3374.2,3373.3,2.96443]
[1735668592974,1.62491508,3374.2,3373.1,0.55]
[1735668593159,0.59798094,3374.2,3373.5,2.96426]
[1735668593750,0.59798094,3374.2,3373.1,0.55]
[1735668594095,0.7618,3374.5,3373.7,0.7979]
[1735668595106,0.58316611,3374.4,3373.7,0.7979]
[1735668595708,3.58316611,3374.4,3373.7,0.7979]
[1735668595993,0.73083861,3374.3,3373.7,0.7979]
[1735668596406,2.96392,3374.0,3372.9,0.8029]
[1735668597123,4.19768884,3374.3,3372.9,0.8029]
[1735668597275,2.96395,3373.9,3372.9,0.8029]
[1735668597640,4.19768884,3374.3,3372.9,0.8029]
[1735668597767,2.96377,3374.1,3373.0,2.96469]
[1735668597987,3.74187149,3374.1,3373.0,3.341449]
[1735668598438,0.7849,3374.3,3373.0,0.376759]
[1735668598745,0.7849,3374.3,3373.1,0.8029]
[1735668599233,0.58316611,3374.4,3373.8,3.76691]
[1735668599397,1.83743569,3374.5,3374.1,2.96368]
[1735668599810,1.83743569,3374.9,3373.9,2.96389]
[1735668600042,0.59261901,3374.8,3373.9,2.96389]
[1735668600328,2.96348,3374.5,3373.5,0.8029]
[1735668600530,0.7849,3374.4,3373.5,3.76718]
[1735668600726,0.7849,3374.4,3373.6,2.96416]
[1735668600913,0.7849,3374.4,3373.5,0.8029]
[1735668601118,0.7849,3374.4,3373.7,2.96407]
[1735668601638,0.7849,3374.4,3373.5,3.76714]
[1735668601830,0.374821,3374.3,3373.5,3.76714]
[1735668602251,0.374821,3374.3,3373.1,0.8029]
[1735668602390,2.96387,3374.0,3373.1,0.8029]
[1735668602723,3.74859,3374.2,3373.1,3.76752]
[1735668602931,2.96378,3374.1,3373.1,3.76752]
[1735668603129,0.4123501,3374.0,3373.1,3.76752]
[1735668603502,2.96401,3373.8,3372.5,2.96515]
[1735668603697,2.96424,3373.6,3372.5,2.96515]
[1735668603950,1.23407884,3373.9,3372.4,0.8029]
[1735668604115,6.83225204,3373.8,3372.6,2.96501]
[1735668605552,6.83225204,3373.8,3372.4,0.8029]
[1735668605844,0.86817204,3373.8,3372.6,2.96499]
[1735668606046,2.96414,3373.7,3372.6,2.96499]
[1735668606233,0.7617212,3373.6,3372.6,2.96499]
[1735668606430,0.7617212,3373.6,3372.8,2.96487]
[1735668606951,0.7617212,3373.6,3372.6,2.96504]
[1735668607608,3.7259212,3373.6,3372.6,2.96504]
[1735668607834,0.7617212,3373.6,3372.6,2.96504]
[1735668608050,3.83220204,3373.8,3372.6,2.96504]
[1735668609447,3.83220204,3373.8,3372.4,0.8029]
[1735668609448,2.96422,3373.6,3372.4,0.8029]
[1735668609749,2.96437,3373.4,3372.4,3.7681]
[1735668610249,3.74905,3373.7,3372.4,0.8029]
[1735668610637,2.96428,3373.5,3372.4,0.8029]
[1735668610963,0.374918,3373.4,3372.4,0.8029]
[1735668611466,0.374918,3373.4,3372.4,3.76812]
[1735668611700,3.45073632,3373.2,3371.5,0.7799]
[1735668611840,2.96467,3373.1,3371.5,0.7799]
[1735668612045,3.45073632,3373.2,3371.5,0.7799]
[1735668612338,2.68236494,3373.2,3371.5,0.7799]
[1735668612539,5.64692494,3373.2,3371.8,3.0]
[1735668612777,0.68875038,3373.1,3372.1,2.96546]
[1735668612960,0.68875038,3373.1,3372.2,0.7799]
[1735668613159,0.68875038,3373.1,3371.7,2.96586]
[1735668613160,0.68875038,3373.1,3371.9,0.7799]
[1735668613322,4.36129477,3373.0,3371.9,2.96564]
[1735668613519,4.36129477,3373.0,3371.6,0.7799]
[1735668613520,2.96482,3372.9,3371.8,2.96576]
[1735668613774,0.50500652,3372.8,3371.8,2.96576]
[1735668613949,5.64743494,3372.6,3371.6,0.7799]
[1735668614282,0.7914,3372.5,3371.6,2.96595]
[1735668614481,0.7914,3372.5,3371.7,2.96584]
[1735668614780,0.7914,3372.5,3371.5,3.7459]
[1735668614982,3.31270649,3372.4,3371.2,0.7799]
[1735668615281,2.96534,3372.3,3371.2,0.7799]
[1735668615659,6.23304699,3372.3,3371.2,0.7799]
[1735668615854,0.7914,3372.2,3371.2,0.7799]
[1735668616083,0.7914,3372.2,3371.2,3.74619]
[1735668616241,0.7914,3372.2,3371.3,2.96614]
[1735668616242,1.52857635,3372.2,3371.3,2.96614]
[1735668616701,0.7914,3372.6,3371.4,3.0]
[1735668616931,1.22458544,3372.9,3371.7,3.7799]
[1735668617134,1.22458544,3372.8,3372.2,2.96534]
[1735668617343,1.22458544,3372.8,3372.3,2.96532]
[1735668617844,1.22458544,3372.8,3372.2,3.0]
[1735668618073,1.85261118,3372.8,3371.7,0.7799]
[1735668618184,0.62802574,3372.8,3371.7,0.7799]
[1735668618383,0.7914,3373.0,3371.7,0.7799]
[1735668618589,0.7914,3373.0,3372.3,2.96528]
[1735668619153,0.7914,3373.0,3371.7,0.7799]
[1735668619154,3.45529752,3373.0,3371.7,0.7799]
[1735668619285,0.7914,3372.9,3372.1,2.96543]
[1735668619493,0.7914,3372.9,3372.0,2.96557]
[1735668619691,1.167003,3372.9,3372.0,2.96557]
[1735668620105,0.7914,3372.8,3371.4,0.7799]
[1735668620351,0.7914,3372.5,3371.6,2.96591]
[1735668620482,0.7914,3372.5,3371.1,3.74622]
[1735668620686,0.7914,3372.5,3371.1,0.7799]
[1735668620942,0.72117275,3372.4,3371.2,0.674642]
[1735668621527,3.68648275,3372.4,3371.3,2.96618]
[1735668622259,3.68648275,3372.4,3371.1,0.7799]
[1735668622260,2.96542,3372.2,3371.1,2.96636]
[1735668622409,0.7914,3372.1,3371.1,2.96636]
[1735668622606,0.7914,3372.1,3371.3,2.96619]
[1735668622928,1.23918528,3372.1,3371.3,2.96619]
[1735668623136,1.23918528,3372.1,3371.1,2.96631]
[1735668623338,0.7914,3372.1,3371.2,2.96629]
[1735668623728,0.7914,3372.1,3370.8,0.7799]
[1735668623932,0.7914,3372.5,3371.3,0.55]
[1735668624126,0.7914,3372.5,3371.3,3.55]
[1735668624327,0.7914,3372.5,3371.9,2.9656]
[1735668624529,1.22458544,3372.7,3372.1,0.55]
[1735668624829,1.22458544,3372.7,3372.6,2.96507]
[1735668625034,1.22458544,3372.7,3372.6,3.74497]
[1735668625234,1.22458544,3373.2,3373.0,2.96468]
[1735668625733,1.22458544,3373.2,3372.8,2.96487]
[1735668626261,0.7914,3373.6,3372.6,2.96503]
[1735668626423,0.7914,3373.4,3372.2,0.754]
[1735668626619,3.0,3373.4,3371.9,2.96564]
[1735668626819,0.7914,3373.0,3371.9,2.96564]
[1735668627025,0.7914,3373.0,3371.8,0.754]
[1735668627216,2.96481,3372.9,3371.8,3.71975]
[1735668627581,0.44917884,3373.4,3371.3,4.20413871]
[1735668627582,0.7914,3372.7,3371.6,2.96591]
[1735668627863,0.7914,3372.7,3371.7,2.96584]
[1735668628363,0.7914,3372.7,3371.8,2.96575]
[1735668629229,0.7914,3372.7,3371.4,1.48362]
[1735668629534,0.7914,3372.7,3371.8,2.96573]
[1735668629731,0.7914,3372.7,3371.9,2.96567]
[1735668630333,0.7914,3372.7,3371.4,0.754]
[1735668630334,0.7914,3372.7,3371.7,0.55]
[1735668630537,0.7914,3372.7,3372.3,2.96533]
[1735668631441,0.7914,3372.7,3372.1,2.96543]
[1735668631659,2.96445,3373.3,3371.8,0.754]
[1735668631875,1.1811286,3373.2,3372.2,2.9654]
[1735668632038,1.1811286,3373.2,3371.8,0.754]
[1735668632246,1.22458544,3373.3,3372.1,0.55]
[1735668632557,1.22458544,3373.3,3373.2,2.96454]
[1735668632721,1.22458544,3373.3,3373.2,0.04320873]
[1735668633077,1.22458544,3373.3,3373.0,2.96469]
[1735668633307,1.22458544,3373.3,3373.2,0.04320873]
[1735668633604,0.7914,3373.8,3373.2,3.00767873]
[1735668634753,0.7914,3373.8,3373.2,0.04320873]
[1735668635267,0.7914,3373.8,3372.9,2.96478]
[1735668635583,0.7914,3373.8,3373.0,2.9647]
[1735668635739,0.7914,3373.8,3373.1,0.04264298]
[1735668636365,0.7914,3373.8,3373.1,3.00726298]
[1735668637093,0.7914,3373.8,3373.1,0.04264298]
[1735668637395,0.7914,3373.8,3372.7,3.71894]
[1735668639063,0.7914,3373.1,3372.1,0.754]
[1735668639388,0.7914,3373.1,3372.2,2.96541]
[1735668639583,0.7914,3373.1,3372.3,0.04331514]
[1735668641780,0.7914,3373.1,3372.4,2.96521]
[1735668641980,0.7914,3373.1,3372.5,0.043079]
[1735668642822,0.7914,3373.1,3372.5,2.96513]
[1735668643005,0.7914,3373.1,3372.6,0.04306054]
[1735668643517,0.7914,3373.1,3372.6,3.00813054]
[1735668643681,4.22458544,3373.5,3372.6,3.00813054]
[1735668643682,0.7914,3373.4,3372.6,3.00813054]
[1735668643883,1.2345475,3373.4,3372.6,3.00813054]
[1735668644408,1.2345475,3373.4,3372.6,2.96507]
[1735668644609,1.22458544,3373.6,3372.8,2.96483]
[1735668644773,1.22458544,3373.6,3372.9,0.04294539]
[1735668644979,4.22458544,3373.7,3372.3,0.7847]
[1735668645175,4.22458544,3373.7,3372.6,2.96503]
[1735668645380,4.22458544,3373.7,3372.7,0.04288937]
[1735668645580,4.22458544,3373.7,3372.7,3.30863131]
[1735668646284,7.18876544,3373.7,3372.7,0.04288937]
[1735668646524,1.22458544,3373.7,3373.0,2.96468]
[1735668646695,1.22458544,3373.7,3372.8,0.7847]
[1735668646894,1.22458544,3373.7,3373.1,0.04273585]
[1735668647190,1.83743569,3373.8,3372.8,0.7847]
[1735668647191,1.22458544,3373.8,3373.2,0.04269748]
[1735668647404,1.22458544,3373.8,3373.0,2.96464]
[1735668647587,1.22458544,3373.8,3373.1,3.38212053]
[1735668648138,3.0,3374.0,3373.1,0.41751053]
[1735668648374,3.0,3374.1,3373.2,2.96453]
[1735668648692,3.0,3374.1,3373.3,0.04249979]
[1735668650567,2.96377,3374.1,3373.3,0.04249979]
[1735668651268,2.96377,3374.1,3373.1,2.96462]
[1735668651469,2.96377,3374.1,3373.2,0.296462]
[1735668651656,4.18835544,3374.1,3373.2,0.33900016]
[1735668651860,2.96399,3373.9,3373.2,0.04253816]
[1735668652017,2.96418,3373.7,3372.8,0.7847]
[1735668652460,2.96418,3373.7,3372.9,0.04203595]
[1735668652639,0.296418,3373.6,3372.9,0.04203595]
[1735668653175,2.96402,3373.8,3372.9,0.04203595]
[1735668653465,2.96402,3373.8,3373.0,0.04199757]
[1735668653822,2.96402,3373.8,3372.8,3.74957]
[1735668654061,2.96402,3373.8,3373.1,0.04206539]
[1735668654277,2.96402,3373.8,3372.8,3.74957]
[1735668654570,3.86662411,3373.8,3373.2,0.04202702]
[1735668654723,2.96411,3373.7,3372.8,0.7847]
[1735668654925,0.90260411,3373.8,3372.8,0.7847]
[1735668655124,2.96402,3373.8,3372.9,3.0]
[1735668655352,2.96402,3373.8,3372.9,3.04209569]
[1735668655565,2.96411,3373.7,3372.9,0.04209569]
[1735668657229,1.22458544,3373.9,3372.9,0.04209569]
[1735668657435,0.7914,3373.5,3372.9,0.04209569]
[1735668657772,1.4350825,3373.5,3372.9,0.04209569]
[1735668657945,0.7914,3373.5,3372.9,0.04209569]
[1735668658671,3.75542,3373.8,3372.9,0.04209569]
[1735668658835,0.7914,3373.8,3372.9,0.04209569]
[1735668659432,1.22458544,3373.9,3373.0,0.7936]
[1735668659762,1.22458544,3374.0,3373.6,0.7936]
[1735668659959,1.77347118,3374.0,3373.1,0.04210522]
[1735668660162,1.77347118,3374.0,3373.7,0.04187501]
[1735668660163,0.7914,3373.9,3373.7,0.04187501]
[1735668660479,3.47261503,3373.9,3372.8,0.7936]
[1735668661061,0.7914,3373.9,3373.0,2.9647]
[1735668661450,3.51273574,3374.0,3373.1,0.83475191]
[1735668661679,0.66431296,3373.9,3373.1,0.83475191]
[1735668662380,2.96415,3373.7,3373.1,0.04115191]
[1735668662535,0.7914,3373.8,3373.1,0.04115191]
[1735668662735,0.7914,3373.8,3372.8,3.75848]
[1735668662936,0.88743592,3373.7,3373.2,0.04111354]
[1735668663164,0.88743592,3373.7,3372.8,3.75848]
[1735668663379,0.88743592,3373.7,3373.3,0.04107517]
[1735668663563,0.88743592,3373.7,3372.8,3.75848]
[1735668663763,0.88743592,3373.7,3373.4,0.0410368]
[1735668663965,0.92129094,3373.6,3372.9,2.96477]
[1735668664368,0.92129094,3373.6,3373.0,0.04119029]
[1735668664993,0.92129094,3373.6,3372.8,0.7936]
[1735668664994,6.56673597,3373.6,3372.8,0.7936]
[1735668665150,2.96428,3373.5,3373.1,0.04126474]
[1735668665339,2.96428,3373.5,3372.5,0.7936]
[1735668665540,0.79034007,3373.4,3372.5,0.7936]
[1735668665802,0.92129094,3373.6,3372.7,2.9649]
[1735668666082,1.22458544,3373.8,3372.9,0.7936]
[1735668666382,1.22458544,3373.8,3373.1,2.96462]
[1735668666581,1.22458544,3373.5,3373.1,2.96462]
[1735668666880,1.22458544,3373.5,3373.2,0.04124628]
[1735668667084,1.22458544,3373.5,3373.4,3.75796]
[1735668667382,1.22458544,3374.0,3373.4,4.133756]
[1735668667561,1.22458544,3374.0,3373.4,4.17492554]
[1735668668692,1.22458544,3374.1,3373.4,4.17492554]
[1735668669059,1.22458544,3374.1,3373.7,2.96406]
[1735668669598,1.22458544,3374.1,3373.8,0.04100945]
[1735668669883,1.22458544,3374.3,3373.5,2.96423]
[1735668670086,1.22458544,3374.3,3373.9,0.04097109]
[1735668670255,2.33793468,3374.3,3373.4,1.169396]
[1735668670445,2.33793468,3374.3,3373.4,4.133756]
[1735668670640,2.33793468,3374.3,3373.5,0.04112453]
[1735668671240,1.22458544,3374.3,3373.6,2.96419]
[1735668671447,1.22458544,3374.3,3373.7,2.96409]
[1735668671878,1.22458544,3374.3,3373.8,0.04100945]
[1735668672081,0.27422403,3374.2,3373.8,0.04100945]
[1735668672465,0.27422403,3374.1,3373.8,0.04100945]
[1735668672855,0.27422403,3374.1,3373.8,0.3415194]
[1735668673046,0.27422403,3374.0,3373.8,0.3415194]
[1735668673248,0.27422403,3374.0,3373.8,0.04100945]
[1735668673649,0.27422403,3373.9,3373.4,0.7936]
[1735668674396,0.27422403,3373.8,3373.4,0.7936]
[1735668675192,0.27422403,3373.7,3373.4,0.7936]
[1735668675888,1.22458544,3374.3,3373.6,2.96419]
[1735668676092,1.22458544,3374.3,3373.7,0.375779]
[1735668676277,1.22458544,3374.2,3373.8,0.8132]
[1735668676460,1.49881752,3374.2,3374.1,6.45816503]
[1735668676861,1.22458544,3374.2,3374.1,6.45816503]
[1735668677463,3.64025444,3375.0,3374.1,6.45816503]
[1735668677464,1.22458544,3375.1,3374.2,0.8132]
[1735668677663,1.22458544,3375.1,3374.8,2.96306]
[1735668678175,1.22458544,3375.1,3374.9,0.8132]
[1735668678376,0.27400571,3375.0,3374.9,0.8132]
[1735668679012,0.005,3375.3,3374.9,0.8132]
[1735668680575,0.005,3375.3,3374.4,0.8132]
[1735668680908,0.005,3375.3,3374.4,1.49394765]
[1735668681112,0.005,3375.3,3374.6,2.9633]
[1735668681511,0.005,3375.3,3374.4,1.49394765]
[1735668681655,0.005,3375.3,3374.4,0.8132]
[1735668681856,2.96777,3375.3,3374.5,0.03922172]
[1735668682052,0.296777,3375.2,3374.5,0.03922172]
[1735668682301,3.259577,3375.2,3374.5,0.03922172]
[1735668682600,0.296777,3375.2,3374.5,0.03922172]
[1735668682801,2.96772,3375.3,3374.5,0.03922172]
[1735668684607,0.005,3375.3,3374.5,3.00253172]
[1735668685887,0.005,3375.3,3374.7,2.96321]
[1735668686326,0.005,3375.3,3374.8,0.0392791]
[1735668686627,0.005,3375.3,3374.4,0.8132]
[1735668686830,0.005,3375.3,3374.6,2.9633]
[1735668687025,0.005,3375.3,3374.7,0.0385546]
[1735668688017,0.301754,3375.3,3374.8,0.03851627]
[1735668688324,0.301754,3375.3,3374.4,0.8132]
[1735668688532,0.005,3375.3,3374.9,0.03841162]
[1735668688691,0.005,3375.3,3374.5,2.9634]
[1735668688890,0.005,3375.3,3375.0,0.03837329]
[1735668689090,0.005,3375.3,3374.4,3.77668]
[1735668689600,0.005,3375.3,3374.5,0.03867107]
[1735668690595,0.005,3375.3,3374.5,3.00201107]
[1735668691432,0.005,3375.3,3374.6,2.96331]
[1735668691734,0.005,3375.3,3374.9,2.96303]
[1735668692130,0.005,3375.3,3375.1,2.96279]
[1735668692523,0.005,3375.3,3375.2,0.03834968]
[1735668693831,0.005,3375.3,3375.0,0.7742]
[1735668694016,0.005,3375.3,3375.1,0.03817583]
[1735668694402,0.005,3375.3,3375.1,0.41571341]
[1735668694714,0.005,3375.3,3375.1,3.00102583]
[1735668694918,0.005,3375.3,3375.1,0.03817583]
[1735668695319,0.005,3375.3,3375.0,2.96294]
[1735668695533,0.005,3375.3,3375.2,0.03812424]
[1735668695706,0.005,3375.3,3375.1,0.03816257]
[1735668695906,0.005,3375.3,3375.2,0.03812424]
[1735668696233,0.005,3375.3,3375.0,2.96294]
[1735668696540,0.005,3375.3,3375.1,0.03818909]
[1735668697079,0.005,3375.3,3374.8,2.9631]
[1735668697241,0.005,3375.3,3375.2,0.03810435]
[1735668697443,0.005,3375.3,3374.8,2.9631]
[1735668697649,0.005,3375.3,3374.9,0.03821934]
[1735668697845,0.005,3375.3,3374.9,0.41577127]
[1735668698048,0.005,3375.3,3374.9,3.00125934]
[1735668698438,0.005,3375.3,3374.9,0.03821934]
[1735668698753,0.005,3375.3,3374.7,3.73738]
[1735668698951,0.005,3375.3,3375.0,0.03818101]
[1735668699159,0.005,3375.3,3374.7,3.73738]
[1735668699355,0.005,3375.3,3375.1,0.03814268]
[1735668699539,0.005,3375.3,3374.4,3.0]
[1735668699738,0.005,3375.3,3375.2,0.03810435]
[1735668699954,0.005,3375.3,3374.5,2.96338]
[1735668699955,0.005,3375.3,3374.5,2.68121503]
[1735668700253,0.005,3375.3,3374.5,2.96332]
[1735668700455,0.005,3375.3,3374.6,0.71189404]
[1735668701258,0.005,3375.3,3374.9,2.96304]
[1735668701414,0.005,3375.3,3375.0,0.03800195]
[1735668701910,0.005,3375.3,3375.1,0.7756]
[1735668702110,0.005,3375.3,3375.2,2.96278]
[1735668702329,0.005,3375.3,3375.2,3.37837001]
[1735668710632,0.005,3375.3,3375.2,0.03795182]
[1735668710832,0.005,3375.3,3374.5,0.7756]
[1735668711043,0.7914,3375.1,3374.6,0.03639025]
[1735668711246,0.7914,3375.1,3374.6,2.9633]
[1735668711451,0.7914,3375.1,3374.7,0.03507369]
[1735668712845,3.37021327,3375.0,3373.7,0.7756]
[1735668713189,0.40721327,3375.0,3374.0,2.96381]
[1735668713478,0.27419192,3374.9,3373.8,2.99976651]
[1735668713649,0.27419192,3374.9,3374.1,0.03570795]
[1735668713850,0.27419192,3374.8,3374.0,2.96381]
[1735668714047,0.27419192,3374.8,3374.1,0.0359797]
[1735668714246,0.27419192,3374.7,3374.1,0.0359797]
[1735668714850,0.27419192,3374.6,3374.1,0.0359797]
[1735668715035,0.7914,3374.5,3373.9,2.96389]
[1735668715235,0.7914,3374.5,3374.0,0.03601805]
[1735668715431,0.27419192,3374.4,3374.0,0.03601805]
[1735668715670,0.27419192,3374.4,3373.3,2.96437]
[1735668715888,0.27419192,3374.4,3372.9,6.88387374]
[1735668715889,2.68121503,3374.3,3373.4,0.03624822]
[1735668716069,0.7914,3374.1,3373.4,0.03624822]
[1735668716277,0.7914,3374.1,3373.0,0.7756]
[1735668716278,2.96393,3373.9,3373.0,0.7756]
[1735668716598,0.7914,3373.8,3373.5,0.03513626]
[1735668716904,0.7914,3373.8,3373.5,2.96428]
[1735668716905,0.27419192,3373.8,3373.5,2.96428]
[1735668717147,0.27419192,3373.8,3373.7,2.9641]
[1735668717316,0.27419192,3373.8,3373.7,3.633273]
[1735668717474,0.7597,3374.5,3373.7,0.03543081]
[1735668717680,2.96359,3374.3,3373.4,0.7633]
[1735668718115,2.96359,3374.3,3373.2,2.96446]
[1735668718116,0.7597,3374.3,3373.5,0.03540808]
[1735668718416,0.27370564,3374.2,3373.5,0.03540808]
[1735668718620,3.23743564,3374.2,3373.1,2.96462]
[1735668718907,0.7597,3374.0,3373.0,3.7633]
[1735668719104,0.7597,3374.0,3373.2,0.03552319]
[1735668719315,2.96401,3373.9,3373.1,0.03556156]
[1735668719524,0.59777616,3373.7,3373.3,0.03548481]
[1735668719662,0.59777616,3373.7,3373.2,0.03552319]
[1735668719853,0.38355218,3373.6,3372.7,0.7633]
[1735668720083,0.7597,3373.5,3372.8,0.03567669]
[1735668720499,0.7597,3373.5,3372.9,2.96473]
[1735668720702,0.27370564,3373.6,3373.0,2.96464]
[1735668720857,0.27370564,3373.4,3373.0,3.0006113]
[1735668721605,0.27370564,3373.3,3373.0,0.0359713]
[1735668721754,0.27370564,3373.2,3373.0,0.0359713]
[1735668721951,0.27370564,3373.2,3372.7,3.72828]
[1735668722192,0.27370564,3373.2,3373.1,0.03735152]
[1735668722365,2.96411,3373.7,3372.7,0.7633]
[1735668722586,2.96411,3373.7,3372.5,2.96512]
[1735668722587,3.97089057,3373.6,3373.1,0.03735152]
[1735668722773,1.3097,3373.7,3373.2,2.96453]
[1735668722774,0.7597,3373.7,3373.2,2.96453]
[1735668722967,1.82414494,3373.9,3373.4,2.96436]
[1735668723199,0.27323501,3373.5,3373.4,5.96436]
[1735668723520,1.22458544,3373.9,3373.4,6.72766]
[1735668723733,1.22458544,3374.2,3373.8,2.96401]
[1735668724322,1.22458544,3374.2,3374.1,3.72705]
[1735668724883,1.22458544,3374.9,3374.3,2.96356]
[1735668725077,1.22458544,3374.9,3374.1,3.72703]
[1735668725308,1.22458544,3374.9,3374.1,0.7633]
[1735668725483,0.27322567,3374.8,3373.9,2.96391]
[1735668725684,0.44608711,3374.7,3373.9,2.96391]
[1735668725926,0.7597,3374.6,3373.7,3.72738]
[1735668726228,3.99624567,3374.6,3373.7,0.7633]
[1735668726786,0.27322567,3374.5,3373.7,3.7274]
[1735668727130,0.98556445,3374.5,3373.8,0.03659886]
[1735668727433,0.27322567,3374.4,3373.8,3.00058886]
[1735668727638,0.27322567,3374.4,3373.8,0.03659886]
[1735668727842,0.27322567,3374.3,3373.8,0.03659886]
[1735668728343,0.27322567,3374.2,3374.0,2.96379]
[1735668728842,0.27322567,3374.2,3374.1,0.03648379]
[1735668729146,0.7597,3374.6,3374.1,2.96366]
[1735668729299,0.7597,3374.9,3374.3,2.9635]
[1735668729640,0.27323945,3374.5,3374.3,2.9635]
[1735668729788,0.27323945,3374.5,3374.4,2.99992168]
[1735668729988,1.22458544,3375.1,3374.5,2.96338]
[1735668730604,0.59022378,3375.2,3374.6,0.036365]
[1735668730795,0.27322954,3375.0,3374.6,0.036365]
[1735668731123,0.27322954,3375.0,3374.7,0.03632666]
[1735668731328,0.27322954,3374.9,3374.7,0.03632666]
[1735668731555,0.7914,3374.8,3373.7,0.7858]
[1735668731846,0.27322954,3374.9,3373.9,2.68121503]
[1735668732006,1.83743569,3375.7,3373.1,1.48793871]
[1735668732007,0.27322954,3374.7,3374.4,2.96348]
[1735668732230,0.27322954,3374.7,3374.5,2.96332]
[1735668732387,0.27322954,3374.7,3374.5,0.03609175]
[1735668732586,0.7914,3375.2,3374.5,0.03609175]
[1735668732836,1.86861694,3375.1,3374.3,0.7858]
[1735668733014,1.86861694,3375.1,3374.6,0.03605341]
[1735668733195,3.23633759,3375.0,3374.0,2.96381]
[1735668733603,3.23633759,3375.0,3374.1,0.03624514]
[1735668733798,0.27334759,3374.9,3374.1,0.03624514]
[1735668734090,0.86298304,3374.9,3374.1,2.99997514]
[1735668734289,0.27334759,3374.9,3374.1,2.99997514]
[1735668734843,0.27334759,3375.0,3374.1,2.99997514]
[1735668735314,0.27334759,3375.0,3374.3,2.96351]
[1735668735504,0.27334759,3375.0,3374.2,0.7858]
[1735668735690,0.27334759,3375.0,3374.5,2.96335]
[1735668736206,0.27334759,3375.1,3374.6,0.03539695]
[1735668736394,0.27334759,3375.1,3374.6,2.99866695]
[1735668736595,0.27334759,3375.1,3374.6,0.03539695]
[1735668737041,0.27334759,3375.1,3374.3,2.96357]
[1735668737237,0.27334759,3375.1,3374.8,3.74886]
[1735668737435,0.27334759,3375.1,3374.8,4.12728186]
[1735668737740,0.27334759,3375.1,3374.9,0.03528194]
[1735668737890,0.27334759,3375.2,3374.9,0.03528194]
[1735668738096,0.27334759,3375.2,3375.1,2.96287]
[1735668738638,0.005,3375.3,3375.1,0.03520528]
[1735668739025,0.005,3375.3,3374.9,2.96297]
[1735668739249,0.005,3375.3,3375.1,2.9628]
[1735668739554,0.005,3375.3,3375.2,0.03516695]
[1735668740139,0.005,3375.3,3374.8,3.74886]
[1735668740304,0.7964,3375.3,3375.2,0.03516695]
[1735668740506,0.7964,3375.3,3374.5,0.7858]
[1735668740754,0.7964,3375.3,3375.2,0.03516695]
[1735668740968,0.7964,3375.3,3374.2,3.0]
[1735668740969,0.7964,3375.3,3374.2,0.7858]
[1735668741175,2.96289,3375.1,3374.2,0.7858]
[1735668741469,0.7964,3375.3,3374.3,2.99907198]
[1735668743152,3.7591,3375.3,3374.3,2.99907198]
[1735668743347,2.96291,3375.1,3374.3,0.03551198]
[1735668743583,2.96313,3374.9,3374.3,0.03551198]
[1735668743789,3.47261503,3375.1,3373.9,3.74971]
[1735668744084,0.45051272,3375.0,3374.0,0.03556738]